[Event "FIDE Open Sachove Univerzity QCC"]
[Site "Ceske Budejovice"]
[Date "2020.07.07"]
[Round "7.13"]
[White "Dusanek, Michal"]
[Black "Straka, Zdenek"]
[Result "1-0"]
[ECO "C07"]
[WhiteElo "1525"]
[BlackElo "1812"]
[Annotator "NA"]
[PlyCount "67"]
[EventDate "2020.07.01"]
[EventType "swiss"]
[EventCountry "CZE"]
[SourceTitle "playchess.com"]
[Source "ChessBase"]
[SourceQuality "1"]
[TimeControl "40/5400+30:1800+30"]

1. e4 {[%emt 0:00:00]} e6 {[%emt 0:00:00]} 2. d4 {[%emt 0:00:00]} d5 {[%emt 0:00:00]} 3. Nd2 {[%emt 0:00:07]} a6 {[%emt 0:00:00]} 4. Bd3 {[%emt 0:01:02]} c5 {[%emt 0:00:09]} 5. dxc5 {[%emt 0:04:21]} Bxc5 {[%emt 0:00:51]} 6. Ngf3 {[%emt 0:01:38]} Nc6 {[%emt 0:00:31]} 7. c3 {[%emt 0:01:25]} Nf6 {[%emt 0:05:17]} 8. Qe2 {[%emt 0:02:26]} O-O {[%emt 0:00:55]} 9. O-O {[%emt 0:01:31]} h6 {[%emt 0:02:46]} 10. h3 {[%emt 0:02:30]} Qc7 {[%emt 0:00:54]} 11. Re1 {[%emt 0:01:59]} b5 {[%emt 0:07:06]} 12. a3 {[%emt 0:03:51]} Bb7 {[%emt 0:01:06]} 13. e5 {[%emt 0:06:38]} Nd7 {[%emt 0:02:37]} 14. Nb3 {[%emt 0:06:04]} Ba7 {[%emt 0:03:42]} 15. Bf4 {[%emt 0:04:58]} Rae8 {[%emt 0:02:48]} 16. Rad1 {[%emt 0:08:29]} f6 {[%emt 0:03:51]} 17. Bg3 {[%emt 0:03:49]} f5 $14 {[%emt 0:08:24]} 18. Nbd4 {[%emt 0:09:10]} f4 {[%emt 0:12:48]} 19. Bh2 {[%emt 0:01:18]} Bb8 {[%emt 0:03:38]} 20. Nxc6 {[%emt 0:02:20]} Qxc6 {[%emt 0:04:55]} 21. Bb1 {[%emt 0:15:34]} g5 {[%emt 0:04:55]} 22. Qd3 {[%emt 0:04:42]} Re7 {[%emt 0:06:06]} 23. Qg6+ {[%emt 0:01:45]} Rg7 {[%emt 0:00:11]} 24. Qxh6 {[%emt 0:00:13]} Rf5 {[%emt 0:01:30]} 25. Bxf5 {[%emt 0:00:37]} exf5 {[%emt 0:00:02]} 26. Qxc6 {[%emt 0:00:32]} Bxc6 {[%emt 0:00:01]} 27. e6 {[%emt 0:00:57]} g4 {[%emt 0:07:08]} 28. exd7 {[%emt 0:01:41]} Bxd7 {[%emt 0:00:33]} 29. Ne5 {[%emt 0:06:43]} g3 {[%emt 0:01:11]} 30. Nxd7 {[%emt 0:00:37]} gxh2+ {[%emt 0:00:03]} 31. Kh1 {[%emt 0:00:12]} f3 {[%emt 0:01:58]} 32. Nxb8 {[%emt 0:01:25]} fxg2+ {[%emt 0:00:19]} 33. Kxh2 {[%emt 0:00:10]} f4 {[%emt 0:00:18]} 34. Rxd5 {[%emt 0:00:37]} 1-0

[Event "FIDE Open Sachove Univerzity QCC"]
[Site "Ceske Budejovice"]
[Date "2020.07.07"]
[Round "7.14"]
[White "Valasek, Jakub"]
[Black "Finek, Vaclav"]
[Result "1/2-1/2"]
[ECO "B34"]
[WhiteElo "1688"]
[BlackElo "2203"]
[Annotator "ChessBase"]
[PlyCount "75"]
[EventDate "2020.07.01"]
[EventType "swiss"]
[EventCountry "CZE"]
[SourceTitle "playchess.com"]
[Source "ChessBase"]
[SourceQuality "1"]
[TimeControl "40/5400+30:1800+30"]

1. e4 {[%emt 0:00:00]} c5 {[%emt 0:00:47]} 2. Nf3 {[%emt 0:00:03]} g6 {[%emt 0:00:15]} 3. d4 {[%emt 0:01:41]} cxd4 {[%emt 0:00:12]} 4. Nxd4 {[%emt 0:01:54]} Bg7 {[%emt 0:00:03]} 5. Be3 {[%emt 0:01:21]} Nc6 {[%emt 0:00:18]} 6. Nxc6 {[%emt 0:01:15]} bxc6 {[%emt 0:00:06]} 7. Bd4 {[%emt 0:01:12]} e5 {[%emt 0:14:08]} 8. Bc5 {[%emt 0:02:11]} d5 {[%emt 0:04:07]} 9. Nd2 {[%emt 0:05:43]} Ne7 {[%emt 0:09:00]} 10. Be2 {[%emt 0:02:45]} O-O {[%emt 0:01:32]} 11. O-O {[%emt 0:03:11]} Be6 {[%emt 0:05:00]} 12. c3 {[%emt 0:05:17]} Re8 {[%emt 0:07:37]} 13. f3 {[%emt 0:04:11]} Rb8 {[%emt 0:00:41]} 14. Qc2 {[%emt 0:02:42]} Qc7 {[%emt 0:03:52]} 15. a4 {[%emt 0:02:46]} Red8 {[%emt 0:06:06]} 16. b4 {[%emt 0:06:23]} d4 {[%emt 0:00:41]} 17. c4 {[%emt 0:02:29]} f5 {[%emt 0:02:10]} 18. Bd3 {[%emt 0:02:43]} Bh6 {[%emt 0:01:09]} 19. a5 {[%emt 0:03:20]} a6 {[%emt 0:01:35]} 20. Bb6 {[%emt 0:02:37]} Rxb6 {[%emt 0:00:35]} 21. axb6 {[%emt 0:00:15]} Qxb6 {[%emt 0:00:02]} 22. Ra4 {[%emt 0:02:27]} fxe4 {[%emt 0:03:35]} 23. Nxe4 {[%emt 0:02:23]} Nf5 {[%emt 0:00:13]} 24. c5 {[%emt 0:02:52]} Qb8 {[%emt 0:03:53]} 25. Qe2 {[%emt 0:01:55]} Rf8 {[%emt 0:04:45]} 26. Rxa6 {[%emt 0:02:12]} Bd5 {[%emt 0:00:05]} 27. Rb1 {[%emt 0:02:32]} Qd8 {[%emt 0:00:52]} 28. Rba1 {[%emt 0:04:41]} Qh4 {[%emt 0:20:41]} 29. Qe1 {[%emt 0:01:51]} Be3+ {[%emt 0:01:29]} 30. Kh1 {[%emt 0:01:46]} Qh6 {[%emt 0:01:32]} 31. Ra8 {[%emt 0:05:06]} Bf4 {[%emt 0:02:03]} 32. Rxf8+ {[%emt 0:03:25]} Kxf8 {[%emt 0:00:01]} 33. h3 {[%emt 0:05:29]} Bxe4 {[%emt 0:02:06]} 34. fxe4 {[%emt 0:02:29]} Ng3+ {[%emt 0:00:48]} 35. Kg1 {[%emt 0:01:37]} Be3+ {[%emt 0:00:38]} 36. Kh2 {[%emt 0:00:32]} Bf4 {[%emt 0:03:42]} 37. Kg1 {[%emt 0:00:53]} Be3+ {[%emt 0:00:04]} 38. Kh2 {[%emt 0:00:23]} 1/2-1/2

[Event "FIDE Open Sachove Univerzity QCC"]
[Site "Ceske Budejovice"]
[Date "2020.07.07"]
[Round "7.15"]
[White "Dudkova, Josefina"]
[Black "Macho, Miloslav"]
[Result "1/2-1/2"]
[ECO "B02"]
[WhiteElo "1449"]
[BlackElo "1659"]
[Annotator "NA"]
[PlyCount "74"]
[EventDate "2020.07.01"]
[EventType "swiss"]
[EventCountry "CZE"]
[SourceTitle "playchess.com"]
[Source "ChessBase"]
[SourceQuality "1"]
[TimeControl "40/5400+30:1800+30"]

1. e4 {[%emt 0:00:00]} Nf6 {[%emt 0:01:48]} 2. Nc3 {[%emt 0:00:00]} d5 {[%emt 0:00:13]} 3. exd5 {[%emt 0:00:00]} Nxd5 {[%emt 0:00:06]} 4. Bc4 {[%emt 0:01:02]} Nxc3 {[%emt 0:00:19]} 5. Qf3 {[%emt 0:00:19]} e6 {[%emt 0:01:04]} 6. dxc3 {[%emt 0:00:19]} Nd7 {[%emt 0:01:16]} 7. Qe2 {[%emt 0:09:24]} Nb6 {[%emt 0:04:18]} 8. Bd3 {[%emt 0:04:39]} Be7 {[%emt 0:06:09]} 9. Bd2 {[%emt 0:05:23]} c6 {[%emt 0:10:27]} 10. O-O-O {[%emt 0:04:46]} Nd5 {[%emt 0:07:38]} 11. f4 {[%emt 0:14:07]} g6 {[%emt 0:06:36]} 12. Nf3 {[%emt 0:10:08]} Qc7 {[%emt 0:03:25]} 13. g3 {[%emt 0:06:01]} a5 {[%emt 0:00:52]} 14. h4 {[%emt 0:04:49]} h5 {[%emt 0:05:31]} 15. Ne5 {[%emt 0:05:38]} Rg8 {[%emt 0:00:36]} 16. Rde1 {[%emt 0:03:25]} Bd7 {[%emt 0:02:26]} 17. g4 {[%emt 0:04:27]} Nf6 {[%emt 0:03:44]} 18. Qf3 {[%emt 0:06:46]} Nxg4 {[%emt 0:01:25]} 19. Nxg4 {[%emt 0:00:19]} hxg4 {[%emt 0:00:06]} 20. Qxg4 {[%emt 0:00:22]} O-O-O {[%emt 0:00:44]} 21. Qf3 {[%emt 0:01:41]} Rh8 {[%emt 0:05:32]} 22. Qf2 {[%emt 0:00:34]} Bd6 {[%emt 0:05:11]} 23. Be3 {[%emt 0:01:09]} c5 {[%emt 0:01:28]} 24. Rd1 {[%emt 0:01:05]} Rh5 {[%emt 0:04:38]} 25. Rh2 {[%emt 0:02:42]} Rdh8 {[%emt 0:01:11]} 26. Be2 {[%emt 0:01:19]} Rd5 {[%emt 0:01:31]} 27. Rf1 {[%emt 0:01:09]} Be7 {[%emt 0:06:07]} 28. Bf3 {[%emt 0:01:43]} Bb5 {[%emt 0:02:35]} 29. Bxd5 {[%emt 0:01:20]} Bxf1 {[%emt 0:00:07]} 30. Bxe6+ {[%emt 0:01:43]} fxe6 {[%emt 0:00:18]} 31. Qxf1 {[%emt 0:00:14]} Rxh4 {[%emt 0:00:41]} 32. Rxh4 {[%emt 0:00:27]} Bxh4 {[%emt 0:00:02]} 33. Qh3 {[%emt 0:00:17]} Qe7 {[%emt 0:01:16]} 34. Qg4 {[%emt 0:01:26]} b6 {[%emt 0:04:29]} 35. Qxg6 {[%emt 0:00:30]} Kc7 {[%emt 0:02:04]} 36. Qe4 {[%emt 0:00:55]} Bf6 {[%emt 0:02:56]} 37. Kd2 {[%emt 0:01:24]} Qd7+ {[%emt 0:00:57]} 1/2-1/2

[Event "FIDE Open Sachove Univerzity QCC"]
[Site "Ceske Budejovice"]
[Date "2020.07.07"]
[Round "7.16"]
[White "Veverka, Vladimir"]
[Black "Svadlenka, Michal"]
[Result "1-0"]
[ECO "E61"]
[WhiteElo "1645"]
[BlackElo "1395"]
[Annotator "NA"]
[PlyCount "73"]
[EventDate "2020.07.01"]
[EventType "swiss"]
[EventCountry "CZE"]
[SourceTitle "playchess.com"]
[Source "ChessBase"]
[SourceQuality "1"]
[TimeControl "40/5400+30:1800+30"]

1. d4 {[%emt 0:00:00]} Nf6 {[%emt 0:00:00]} 2. c4 {[%emt 0:00:00]} g6 {[%emt 0:00:08]} 3. Nc3 {[%emt 0:00:33]} Bg7 {[%emt 0:00:29]} 4. Bd2 {[%emt 0:00:38]} O-O {[%emt 0:00:57]} 5. h3 {[%emt 0:00:30]} d6 {[%emt 0:01:03]} 6. e4 {[%emt 0:01:10]} c5 {[%emt 0:01:41]} 7. d5 {[%emt 0:00:36]} e6 {[%emt 0:01:50]} 8. Nf3 {[%emt 0:02:31]} Re8 {[%emt 0:01:33]} 9. Be2 {[%emt 0:00:48]} exd5 {[%emt 0:03:01]} 10. exd5 {[%emt 0:00:55]} Bf5 {[%emt 0:08:53]} 11. O-O {[%emt 0:00:59]} Be4 {[%emt 0:04:23]} 12. Nxe4 {[%emt 0:05:39]} Nxe4 {[%emt 0:05:02]} 13. Bd3 {[%emt 0:00:58]} Nd7 {[%emt 0:07:31]} 14. Bf4 {[%emt 0:06:46]} Qf6 {[%emt 0:09:30]} 15. Qc1 {[%emt 0:11:37]} Nb6 {[%emt 0:08:02]} 16. b3 {[%emt 0:04:43]} Qxa1 {[%emt 0:04:05]} 17. Qxa1 {[%emt 0:04:30]} Bxa1 {[%emt 0:00:11]} 18. Rxa1 {[%emt 0:00:08]} Rad8 {[%emt 0:01:52]} 19. Nh2 {[%emt 0:03:04]} f5 {[%emt 0:02:54]} 20. Re1 {[%emt 0:02:54]} Nc8 {[%emt 0:04:49]} 21. Bxe4 {[%emt 0:01:05]} Rxe4 {[%emt 0:03:25]} 22. Rxe4 {[%emt 0:00:12]} fxe4 {[%emt 0:00:12]} 23. Ng4 {[%emt 0:02:48]} Rf8 {[%emt 0:02:06]} 24. Bg5 {[%emt 0:00:39]} Rf5 {[%emt 0:05:58]} 25. Nh6+ {[%emt 0:00:07]} Kg7 {[%emt 0:00:33]} 26. Nxf5+ {[%emt 0:00:15]} gxf5 {[%emt 0:00:17]} 27. Kf1 {[%emt 0:00:37]} h6 {[%emt 0:02:56]} 28. Bf4 {[%emt 0:01:00]} h5 {[%emt 0:02:23]} 29. Kg1 {[%emt 0:02:49]} Kf6 {[%emt 0:01:25]} 30. Kh2 {[%emt 0:01:28]} Ke7 {[%emt 0:09:49]} 31. Kg3 {[%emt 0:00:44]} b5 {[%emt 0:01:20]} 32. Kh4 {[%emt 0:01:36]} bxc4 {[%emt 0:01:16]} 33. bxc4 {[%emt 0:00:10]} Nb6 {[%emt 0:00:22]} 34. Kxh5 {[%emt 0:00:35]} Nxc4 {[%emt 0:00:18]} 35. Kg6 {[%emt 0:02:35]} Ne5+ {[%emt 0:06:24]} 36. Bxe5 {[%emt 0:01:25]} dxe5 {[%emt 0:00:13]} 37. Kxf5 {[%emt 0:00:15]} 1-0

[Event "FIDE Open Sachove Univerzity QCC"]
[Site "Ceske Budejovice"]
[Date "2020.07.07"]
[Round "7.17"]
[White "Frnoch, Vojtech"]
[Black "Svejda, Karel"]
[Result "1-0"]
[ECO "E65"]
[WhiteElo "1597"]
[BlackElo "1457"]
[Annotator "NA"]
[PlyCount "34"]
[EventDate "2020.07.01"]
[EventType "swiss"]
[EventCountry "CZE"]
[SourceTitle "playchess.com"]
[Source "ChessBase"]
[SourceQuality "1"]
[TimeControl "40/5400+30:1800+30"]

1. Nf3 {[%emt 0:00:00]} Nf6 {[%emt 0:00:00]} 2. c4 {[%emt 0:00:08]} g6 {[%emt 0:00:00]} 3. d4 {[%emt 0:00:32]} Bg7 {[%emt 0:00:00]} 4. Nc3 {[%emt 0:00:40]} d6 {[%emt 0:00:18]} 5. g3 {[%emt 0:01:28]} O-O {[%emt 0:01:00]} 6. Bg2 {[%emt 0:00:18]} Nbd7 {[%emt 0:01:24]} 7. O-O {[%emt 0:00:46]} c5 {[%emt 0:00:47]} 8. e3 {[%emt 0:01:45]} a6 {[%emt 0:05:22]} 9. a4 {[%emt 0:01:38]} Rb8 {[%emt 0:04:31]} 10. b3 {[%emt 0:06:08]} Ne8 {[%emt 0:11:00]} 11. Qc2 {[%emt 0:05:54]} Nc7 {[%emt 0:04:29]} 12. a5 {[%emt 0:05:12]} b5 {[%emt 0:05:46]} 13. axb6 {[%emt 0:01:27]} Rxb6 {[%emt 0:03:04]} 14. Rd1 {[%emt 0:04:03]} Ne6 {[%emt 0:14:54]} 15. Nd5 {[%emt 0:04:05]} Rb8 {[%emt 0:00:10]} 16. Bd2 {[%emt 0:07:17]} Bb7 {[%emt 0:06:34]} 17. Ba5 {[%emt 0:00:31]} Qc8 {[%emt 0:00:29]} 1-0

[Event "FIDE Open Sachove Univerzity QCC"]
[Site "Ceske Budejovice"]
[Date "2020.07.07"]
[Round "7.18"]
[White "Svadlenka, Dominik"]
[Black "Zachar, Jaroslav"]
[Result "0-1"]
[ECO "A85"]
[WhiteElo "1350"]
[BlackElo "1831"]
[Annotator "NA"]
[PlyCount "76"]
[EventDate "2020.07.01"]
[EventType "swiss"]
[EventCountry "CZE"]
[SourceTitle "playchess.com"]
[Source "ChessBase"]
[SourceQuality "1"]
[TimeControl "40/5400+30:1800+30"]

1. d4 {[%emt 0:00:00]} d5 {[%emt 0:05:10]} 2. c4 {[%emt 0:00:00]} e6 {[%emt 0:00:14]} 3. Nc3 {[%emt 0:00:05]} f5 {[%emt 0:00:39]} 4. Nf3 {[%emt 0:01:07]} Nf6 {[%emt 0:00:16]} 5. Bg5 {[%emt 0:02:37]} c6 {[%emt 0:01:56]} 6. e3 {[%emt 0:04:00]} Bd6 {[%emt 0:10:36]} 7. cxd5 {[%emt 0:02:27]} exd5 {[%emt 0:00:36]} 8. Bd3 {[%emt 0:02:17]} O-O {[%emt 0:15:08]} 9. O-O {[%emt 0:01:55] A85: Dutch Defence: 2 c4 Nf6 3 Nc3.} Qe8 {[%emt 0:01:20]} 10. Rb1 {[%emt 0:03:47]} Ne4 {[%emt 0:02:21]} 11. Bf4 {[%emt 0:14:55] [#]} Bb4 $146 {[%emt 0:01:18]} ({Predecessor:} 11... Be7 12. Qb3 Kh8 13. Bxb8 Rxb8 14. Qc2 Bd6 15. Ne2 Rf6 16. Ng3 Rh6 17. Rbe1 Bxg3 18. fxg3 {0-1 (33) Castrogiovanni,C (2024)-Attuati,S (1930) Crema 2010}) 12. Qb3 {[%emt 0:00:59]} Be7 {[%emt 0:02:43]} (12... a5 $142) 13. Nxe4 {[%emt 0:06:04] Pin} fxe4 {[%emt 0:04:38]} 14. Bxe4 {[%emt 0:00:14]} Nd7 {[%emt 0:01:43]} 15. Bd3 {[%emt 0:06:39]} Kh8 {[%emt 0:02:05]} 16. Qc2 {[%emt 0:02:33]} Qh5 {[%emt 0:02:14]} 17. b4 {[%emt 0:00:49]} a6 {[%emt 0:17:49]} 18. a4 {[%emt 0:01:05]} Nf6 {[%emt 0:03:12]} 19. b5 {[%emt 0:02:56]} axb5 {[%emt 0:05:14]} 20. axb5 {[%emt 0:03:13]} Ra3 {[%emt 0:00:30]} 21. Be2 {[%emt 0:00:30]} Bf5 {[%emt 0:00:27]} 22. Qb2 {[%emt 0:04:49]} Bxb1 {[%emt 0:00:28]} 23. Rxb1 {[%emt 0:01:07]} Ne4 {[%emt 0:04:26]} 24. Ng5 {[%emt 0:04:19]} Qg6 {[%emt 0:01:05]} 25. Nxe4 {[%emt 0:00:17]} Qxe4 {[%emt 0:00:45]} 26. bxc6 {[%emt 0:05:17]} bxc6 $11 {[%emt 0:00:34]} 27. Bg5 {[%emt 0:04:45]} Bxg5 {[%emt 0:00:50]} 28. Qb4 {[%emt 0:09:12]} Raa8 {[%emt 0:03:06]} 29. Ba6 {[%emt 0:03:45]} Qf5 {[%emt 0:00:22]} 30. Qb6 {[%emt 0:02:49]} Qxf2+ {[%emt 0:00:37]} 31. Kh1 {[%emt 0:00:11]} Rae8 {[%emt 0:02:24]} 32. Qa5 {[%emt 0:01:45]} Qc2 {[%emt 0:02:06]} 33. Qa1 {[%emt 0:00:30]} Bxe3 {[%emt 0:01:11]} 34. Rd1 {[%emt 0:00:49]} Ra8 {[%emt 0:00:25]} 35. Re1 {[%emt 0:05:45]} Qf2 {[%emt 0:03:13]} 36. Rd1 {[%emt 0:02:18]} Bxd4 {[%emt 0:00:40]} 37. Rxd4 {[%emt 0:02:00]} Rxa6 {[%emt 0:00:18]} 38. Qxa6 {[%emt 0:00:37]} Qe1+ {[%emt 0:00:18]} 0-1

[Event "FIDE Open Sachove Univerzity QCC"]
[Site "Ceske Budejovice"]
[Date "2020.07.07"]
[Round "7.19"]
[White "Pokora, Lubomir"]
[Black "Gorej, Vojtech"]
[Result "1-0"]
[ECO "D05"]
[WhiteElo "1791"]
[BlackElo "1405"]
[Annotator "NA"]
[PlyCount "97"]
[EventDate "2020.07.01"]
[EventType "swiss"]
[EventCountry "CZE"]
[SourceTitle "playchess.com"]
[Source "ChessBase"]
[SourceQuality "1"]
[TimeControl "40/5400+30:1800+30"]

1. d4 {[%emt 0:00:33]} Nf6 {[%emt 0:03:51]} 2. Nf3 {[%emt 0:00:12]} e6 {[%emt 0:01:17]} 3. e3 {[%emt 0:00:21]} c5 {[%emt 0:01:08]} 4. Bd3 {[%emt 0:01:02]} Nc6 {[%emt 0:03:01]} 5. b3 {[%emt 0:03:38]} b6 {[%emt 0:03:57]} 6. O-O {[%emt 0:00:31]} Bb7 {[%emt 0:00:49]} 7. a3 {[%emt 0:02:35]} Be7 {[%emt 0:01:52]} 8. Bb2 {[%emt 0:00:19]} O-O {[%emt 0:00:34]} 9. Nbd2 {[%emt 0:00:18]} d5 {[%emt 0:03:00]} 10. Ne5 {[%emt 0:03:03]} Qc7 {[%emt 0:02:04]} 11. f4 {[%emt 0:01:33]} cxd4 {[%emt 0:02:03]} 12. exd4 {[%emt 0:02:24]} Rfe8 {[%emt 0:02:56]} 13. Rf3 {[%emt 0:09:09]} Bf8 {[%emt 0:05:11]} 14. Rh3 {[%emt 0:00:55]} g6 {[%emt 0:01:53]} 15. Qe2 {[%emt 0:07:22]} Bg7 {[%emt 0:03:42]} 16. Rf1 {[%emt 0:03:40]} Ne7 {[%emt 0:03:36]} 17. c3 {[%emt 0:04:26]} Rad8 {[%emt 0:01:32]} 18. g4 {[%emt 0:03:58]} Bc8 {[%emt 0:02:11]} 19. Kh1 {[%emt 0:06:34]} Qd6 {[%emt 0:04:06]} 20. Rg3 {[%emt 0:02:10]} Qc7 {[%emt 0:02:53]} 21. h4 {[%emt 0:01:26]} h5 {[%emt 0:02:12]} 22. g5 {[%emt 0:18:15]} Nh7 {[%emt 0:01:53]} 23. Qd1 {[%emt 0:01:08]} Nf5 {[%emt 0:02:37]} 24. Bxf5 {[%emt 0:00:45]} exf5 {[%emt 0:00:34]} 25. a4 {[%emt 0:05:10]} Be6 {[%emt 0:01:39]} 26. Re3 {[%emt 0:00:55]} Bf8 {[%emt 0:00:58]} 27. Qf3 {[%emt 0:02:22]} Bd6 {[%emt 0:01:49]} 28. Rfe1 {[%emt 0:00:34]} Nf8 {[%emt 0:00:45]} 29. Nf1 {[%emt 0:00:19]} a5 {[%emt 0:02:16]} 30. Ng3 {[%emt 0:00:20]} Bxe5 {[%emt 0:01:26]} 31. fxe5 {[%emt 0:02:19]} Bc8 {[%emt 0:02:50]} 32. Ba3 {[%emt 0:08:17]} Ne6 {[%emt 0:01:19]} 33. Ne2 {[%emt 0:01:55]} Ba6 {[%emt 0:02:35]} 34. Nf4 {[%emt 0:00:53]} Nxf4 {[%emt 0:00:23]} 35. Qxf4 {[%emt 0:00:01]} Bc8 {[%emt 0:01:12]} 36. Kg1 {[%emt 0:00:20]} Be6 {[%emt 0:00:20]} 37. Rc1 {[%emt 0:00:48]} Rc8 {[%emt 0:00:25]} 38. Re2 {[%emt 0:00:44]} Qb7 {[%emt 0:01:18]} 39. Qf1 {[%emt 0:02:03]} b5 {[%emt 0:01:32]} 40. axb5 {[%emt 0:00:58]} Qxb5 {[%emt 0:00:11]} 41. Rb2 {[%emt 0:30:32]} Qxf1+ {[%emt 0:30:43]} 42. Kxf1 {[%emt 0:00:31]} Rb8 {[%emt 0:02:22]} 43. Bd6 {[%emt 0:01:22]} Rb7 {[%emt 0:01:11]} 44. Ra1 {[%emt 0:00:00]} Ra8 {[%emt 0:00:00]} 45. Bb4 {[%emt 0:00:00]} Rba7 {[%emt 0:00:00]} 46. Rba2 {[%emt 0:00:00]} Bd7 {[%emt 0:00:00]} 47. Bxa5 {[%emt 0:00:00]} Bb5+ {[%emt 0:00:00]} 48. Kf2 {[%emt 0:00:00]} Kf8 {[%emt 0:00:00]} 49. Bb4+ {[%emt 0:00:00]} 1-0

[Event "FIDE Open Sachove Univerzity QCC"]
[Site "Ceske Budejovice"]
[Date "2020.07.07"]
[Round "7.20"]
[White "Stary, Vojtech"]
[Black "Jodas, Daniel"]
[Result "1-0"]
[ECO "B33"]
[WhiteElo "1460"]
[BlackElo "1659"]
[Annotator "NA"]
[PlyCount "69"]
[EventDate "2020.07.01"]
[EventType "swiss"]
[EventCountry "CZE"]
[SourceTitle "playchess.com"]
[Source "ChessBase"]
[SourceQuality "1"]
[TimeControl "40/5400+30:1800+30"]

1. e4 {[%emt 0:00:00]} c5 {[%emt 0:00:22]} 2. Nf3 {[%emt 0:00:00]} d6 {[%emt 0:00:48]} 3. d4 {[%emt 0:00:17]} cxd4 {[%emt 0:00:05]} 4. Nxd4 {[%emt 0:00:21]} Nc6 {[%emt 0:00:45]} 5. Nc3 {[%emt 0:00:14]} Nf6 {[%emt 0:00:20]} 6. Be2 {[%emt 0:00:54]} a6 {[%emt 0:00:41]} 7. Be3 {[%emt 0:00:18]} e6 {[%emt 0:01:15]} 8. O-O {[%emt 0:01:12]} Be7 {[%emt 0:01:54]} 9. f4 {[%emt 0:04:20]} Qc7 {[%emt 0:03:42]} 10. a3 {[%emt 0:08:27]} O-O {[%emt 0:02:32]} 11. Qe1 {[%emt 0:03:16]} b5 {[%emt 0:08:33]} 12. Bd3 {[%emt 0:05:26]} Bb7 {[%emt 0:06:10]} 13. Qg3 {[%emt 0:01:29]} g6 {[%emt 0:21:22]} 14. f5 {[%emt 0:01:55]} Nxd4 {[%emt 0:05:37]} 15. Bxd4 {[%emt 0:02:16]} e5 {[%emt 0:00:51]} 16. Be3 {[%emt 0:01:01]} Rfd8 {[%emt 0:09:53]} 17. Rf2 {[%emt 0:06:54]} Nh5 {[%emt 0:13:30]} 18. Qg4 {[%emt 0:03:43]} Qd7 {[%emt 0:02:43]} 19. Raf1 {[%emt 0:04:32]} Bf8 {[%emt 0:02:45]} 20. Qe2 {[%emt 0:05:31]} Ng7 {[%emt 0:06:22]} 21. Bh6 {[%emt 0:04:12]} Bc6 {[%emt 0:04:33]} 22. f6 {[%emt 0:01:19]} Ne6 {[%emt 0:00:13]} 23. Bxf8 {[%emt 0:00:38]} Kxf8 {[%emt 0:00:10]} 24. Qe3 {[%emt 0:01:43]} Qe8 {[%emt 0:03:43]} 25. Qh6+ {[%emt 0:01:41]} Kg8 {[%emt 0:00:05]} 26. Nd5 {[%emt 0:01:23]} Bxd5 {[%emt 0:00:47]} 27. exd5 {[%emt 0:00:46]} Qf8 {[%emt 0:00:01]} 28. Qh4 {[%emt 0:03:15]} Nc7 {[%emt 0:01:33]} 29. Be4 {[%emt 0:01:17]} Rdb8 {[%emt 0:00:21]} 30. Rf3 {[%emt 0:03:16]} h6 {[%emt 0:01:19]} 31. Rh3 {[%emt 0:01:26]} Kh7 {[%emt 0:00:05]} 32. Rff3 {[%emt 0:00:56]} b4 {[%emt 0:00:21]} 33. a4 {[%emt 0:03:11]} a5 {[%emt 0:01:37]} 34. Rfg3 {[%emt 0:00:19]} Na6 {[%emt 0:01:09]} 35. Qg5 {[%emt 0:00:31]} 1-0

[Event "FIDE Open Sachove Univerzity QCC"]
[Site "Ceske Budejovice"]
[Date "2020.07.07"]
[Round "7.21"]
[White "Veselsky, Jan"]
[Black "Rolinkova, Adela"]
[Result "0-1"]
[ECO "D13"]
[WhiteElo "1580"]
[BlackElo "1382"]
[Annotator "NA"]
[PlyCount "48"]
[EventDate "2020.07.01"]
[EventType "swiss"]
[EventCountry "CZE"]
[SourceTitle "playchess.com"]
[Source "ChessBase"]
[SourceQuality "1"]
[TimeControl "40/5400+30:1800+30"]

1. d4 {[%emt 0:00:00]} d5 {[%emt 0:00:00]} 2. c4 {[%emt 0:00:00]} c6 {[%emt 0:01:21]} 3. Nf3 {[%emt 0:00:00]} Nf6 {[%emt 0:00:20]} 4. Nc3 {[%emt 0:00:00]} Bg4 {[%emt 0:00:36]} 5. cxd5 {[%emt 0:00:45]} cxd5 {[%emt 0:02:57]} 6. Qb3 {[%emt 0:02:07]} Qb6 {[%emt 0:09:39]} 7. Nxd5 {[%emt 0:04:07]} Nxd5 {[%emt 0:02:28]} 8. Qxd5 {[%emt 0:00:22]} e6 {[%emt 0:12:44]} 9. Qb3 {[%emt 0:10:50]} Qxb3 {[%emt 0:01:07]} 10. axb3 {[%emt 0:00:10]} Bxf3 {[%emt 0:00:51]} 11. gxf3 {[%emt 0:02:33]} Nc6 {[%emt 0:00:36]} 12. e3 {[%emt 0:02:18]} Bb4+ {[%emt 0:07:09]} 13. Bd2 {[%emt 0:00:57]} O-O {[%emt 0:02:25]} 14. Bc4 {[%emt 0:06:07]} a6 {[%emt 0:03:59]} 15. Rc1 {[%emt 0:06:23]} Rfc8 {[%emt 0:02:37]} 16. Bxb4 {[%emt 0:14:27]} Nxb4 {[%emt 0:00:16]} 17. O-O {[%emt 0:01:13]} Rc7 {[%emt 0:00:51]} 18. Rc3 {[%emt 0:13:34]} Rac8 {[%emt 0:01:26]} 19. Rfc1 {[%emt 0:00:46]} Na2 {[%emt 0:00:31]} 20. Bxe6 {[%emt 0:05:40]} Nxc1 {[%emt 0:02:35]} 21. Bc4 {[%emt 0:02:46]} b5 {[%emt 0:03:21]} 22. Rxc1 {[%emt 0:02:31]} bxc4 {[%emt 0:00:12]} 23. bxc4 {[%emt 0:00:16]} Rxc4 {[%emt 0:00:06]} 24. Ra1 {[%emt 0:00:06]} Rc1+ {[%emt 0:00:04]} 0-1